Cogmind - Beta 15 @@@ ROGUE MODE // 2025.06.09 @ 23:27:04 Player: 7604 Result: Destroyed by 9M-2XM(R) with Subdweller Beam Cannon Performance ------------- Evolutions (0) 0 Regions Visited (2) 400 Robots Destroyed (25) 125 Value Destroyed (456) 456 Prototype IDs (11) 220 Alien Tech Used (0) 0 Bonus (-54) -54 TOTAL SCORE: 1147 Bonus ------- Friendly Fire -54 Cogmind --------- Core Integrity 0/250 Matter 274/300 Energy 139/200 System Corruption 2% Temperature Cool (9) Movement Treading (340) Ox2 Location -10/Subcaves Parts ------- > --- POWER (1) -------- Subdweller Power Source > --- PROPULSION (2) --- Light Treads Spiked Treads > --- UTILITY (2) ------ Huge Storage Unit Seismic Detector > --- WEAPON (2) ------- Battle Rifle Battle Rifle > --- INVENTORY (25) --- Subdweller Power Source Light Treads Light Treads Light Treads Spiked Treads Subdweller Monowheel Flightbrick Cooling System Cooling System Cooling System Cooling System Structural Scanner Improved Terrain Scanner Scrap Shield Riot Gun Subdweller Beam Cannon Mining Laser Heavy Hammer Heavy Hammer Heavy Hammer Heavy Hammer Peak State ------------ > --- POWER ------------ Subdweller Power Source > --- PROPULSION ------- Light Treads Spiked Treads > --- UTILITY ---------- Huge Storage Unit Seismic Detector > --- WEAPON ----------- Riot Gun Heavy Hammer > --- INVENTORY -------- Subdweller Power Source Light Treads Light Treads Light Treads Spiked Treads Subdweller Monowheel Flightbrick Cooling System Cooling System Cooling System Cooling System Structural Scanner Improved Terrain Scanner Scrap Shield Subdweller Beam Cannon Battle Rifle Battle Rifle Mining Laser Heavy Hammer Heavy Hammer Heavy Hammer [Rating: 19] Favorites ----------- Power Ion Engine Engine Ion Engine Propulsion Light Treads Treads Light Treads Leg Aluminum Leg Wheel Wheel Utility Seismic Detector Device Seismic Detector Storage Huge Storage Unit Weapon Small Laser Energy Gun Small Laser Energy Cannon Subdweller Beam Cannon Ballistic Gun Battle Rifle Special Weapon Mining Laser Impact Weapon Heavy Hammer Build | -11 -10 -10 ------- Run | Yrd Mat Sub Slots Evolved . | . . . Power . | . . . Propulsion . | . . . Utility . | . . . Weapon . | . . . Parts Attached 26 | 2 10 14 Power 2 | . . 2 Engine 2 | . . 2 Core . | . . . Reactor . | . . . Propulsion 6 | . 4 2 Treads 5 | . 3 2 Leg . | . . . Wheel 1 | . 1 . Hover . | . . . Flight . | . . . Utility 5 | 1 3 1 Device 3 | 1 1 1 Storage 2 | . 2 . Processor . | . . . Hackware . | . . . Protection . | . . . Artifact . | . . . Weapon 13 | 1 3 9 Energy Gun 4 | 1 1 2 Energy Cannon 1 | . . 1 Ballistic Gun 3 | . . 3 Ballistic Cannon . | . . . Launcher . | . . . Special Weapon 1 | . 1 . Impact Weapon 4 | . 1 3 Slashing Weapon . | . . . Piercing Weapon . | . . . Special Melee Weapon . | . . . Unidentified Prototypes . | . . . Parts Lost 3 | . . 3 Power 1 | . . 1 Propulsion . | . . . Utility 1 | . . 1 Weapon 1 | . . 1 Highest Loss Streak 2 | . . 2 To Critical Strikes . | . . . Average Backups 18 | 6 12 23 Power 1 | 1 1 1 Propulsion 5 | 4 4 6 Utility 5 | . 4 7 Weapon 5 | 1 3 7 Tool/Special . | . . . Unused Backups 26 | 5 3 18 Power 4 | 1 . 3 Propulsion 10 | 2 2 6 Utility 9 | 1 1 7 Weapon 3 | 1 . 2 Tool/Special . | . . . Average Slot Usage (%) 99 | . 100 99 Engine 13 | . 14 13 Treads 24 | . 20 28 Leg 3 | . 7 . Device 13 | . 14 13 Storage 14 | . 14 14 Energy Gun 12 | . 17 8 Ballistic Gun 12 | . 8 15 Impact Weapon 1 | . . 2 Peak Build Rating 19 | 8 11 19 Average Rating 11 | 6 8 13 On Entrance 8 | 6 8 11 Naked Turns . | . . . Heaviest Build 97 | 13 90 97 Greatest Support 40 | 20 40 40 Greatest Overweight (x) 8 | . 8 2 Average Overweight (x) 1 | . 1 2 Largest Inventory Capacity 25 | 8 25 25 Average Capacity 22 | 8 21 25 Most Carried 25 | 8 23 25 Average Carried 18 | 6 12 24 Final Capacity 25 | 8 25 25 Final Carried 25 | 8 23 25 Class Distribution -------------------- 100% | Mutant Dominant Class ---------------- Mutant | -10/Materials Mutant | -10/Subcaves Resources | -11 -10 -10 ----------- Run | Yrd Mat Sub Matter Collected 836 | 236 242 358 Remotely . | . . . Salvage Created 799 | 146 474 179 Parts 54 | 14 32 8 Haulers Intercepted 2 | . 2 . Recyclers Shooed 3 | 2 1 . Parts Field Recycled . | . . . Retrieved Matter . | . . . Parts Self-Destructed 10 | . . 10 Prevented . | . . . Kills | -11 -10 -10 ------- Run | Yrd Mat Sub Combat Hostiles Destroyed 14 | . 11 3 Guns 13 | . 11 2 Cannons 1 | . . 1 Classes Destroyed 8 | 2 4 2 Tunneler 5 | 5 . . Hauler 2 | . 2 . Recycler 1 | 1 . . Watcher 3 | . 3 . Swarmer 6 | . 6 . Grunt 5 | . 5 . Artisan 2 | . . 2 Subdweller 3 | . . 3 Best Kill Streak 3 | 2 3 1 Combat Bots Only 3 | . 3 1 Max Kills in Single Turn 1 | 1 1 1 Gunslinging . | . . . Exploded . | . . . Melee . | . . . Uniques/NPCs Destroyed . | . . . Combat | -11 -10 -10 -------- Run | Yrd Mat Sub Hostile Shots Fired 83 | . 61 22 Missed 24 | . 15 9 Hits 59 | . 46 13 Projectile 59 | . 46 13 Critical Strikes 1 | . . 1 Damage Taken 831 | . 446 385 Core 261 | . 110 151 Absorbed by Shields . | . . . Core Remaining (%) 100 | 100 . . Volleys Fired 100 | 16 58 26 Largest 2 | 2 2 2 Hottest 100 | 60 100 80 Shots Fired 179 | 32 107 40 Gun 166 | 32 98 36 Cannon 4 | . . 4 Launcher . | . . . Special 9 | . 9 . Kinetic 64 | 16 29 19 Thermal 107 | 16 78 13 Explosive . | . . . Electromagnetic 8 | . . 8 Robot Hit Streak 14 | 5 13 14 Robot Miss Streak 4 | 2 3 4 Penetration Max . | . . . Secondary Targets 1 | . 1 . Max Gunslinging Chain 1 | . 1 . Shots Hit Robots 109 | 20 62 27 Core Hits 47 | 9 29 9 Critical Kills . | . . . Critical Parts Destroyed 2 | 1 . 1 Critical Strikes 2 | 1 . 1 Destroy 2 | 1 . 1 Melee Attacks 11 | . 1 10 Impact 11 | . 1 10 Slashing . | . . . Piercing . | . . . Sneak Attacks . | . . . Combat Hostiles . | . . . Follow-up Attacks . | . . . Damage Inflicted 1372 | 206 677 489 Guns 1178 | 206 671 301 Cannons 111 | . . 111 Explosions . | . . . Melee 77 | . . 77 Ramming 6 | . 6 . Kinetic 365 | 73 158 134 Thermal 842 | 133 513 196 Explosive . | . . . Electromagnetic 82 | . . 82 Impact 77 | . . 77 Slashing . | . . . Piercing . | . . . Highest Corruption 2 | . 2 2 Average Corruption 2 | . 2 2 Corruption Purged . | . . . Corruption Blocked . | . . . Effects 42 | . 13 29 Message Errors 9 | . 3 6 Matter Fused 19 | . 8 11 Heat Flow Errors 4 | . 1 3 Energy Discharges 2 | . . 2 Data Loss (minor) 3 | . . 3 Data Loss (major) 3 | . . 3 Misfires 1 | . . 1 Alerts 1 | . 1 . Overload Shots . | . . . Overflow Damage . | . . . Projectiles . | . . . Explosions . | . . . Melee . | . . . Knockbacks 1 | . . 1 Impact 1 | . . 1 Kinetic . | . . . Secondary . | . . . Self-Inflicted Damage . | . . . Shots . | . . . Rammed 1 | . 1 . Targets Rammed 2 | . 2 . Kicked 1 | . 1 . Crushed . | . . . Highest Temperature 188 | 60 188 185 Average Temperature 44 | 27 45 87 Received Heat Transfer 231 | . 129 102 Siege Activations . | . . . Martial Activations . | . . . Shielding Activations . | . . . Robots Disrupted . | . . . Combat Hostiles . | . . . Robots Corrupted . | . . . Combat Hostiles . | . . . Parts Fried . | . . . Impact Corruptions . | . . . Robots Melted . | . . . Combat Hostiles . | . . . Parts Melted 3 | . 2 1 Heat Transferred 1798 | 300 1150 348 Parts Sabotaged . | . . . Parts Stolen . | . . . Parts Stripped . | . . . Power Chain Reactions . | . . . Alert | -11 -10 -10 ------- Run | Yrd Mat Sub Maximum Alert Level . | . . . Low Security (%) 100 | 100 100 . Level 1 . | . . . Level 2 . | . . . Level 3 . | . . . Level 4 . | . . . Level 5 . | . . . High Security . | . . . Max Security . | . . . Peak Influence 110 | 10 110 . Initial . | . . . Average 23 | 1 25 . Influence Increases 487 | 30 457 . Destroy 0b10 Robot/C 220 | . 220 . Destroy 0b10 Robot/NC 55 | 30 25 . Destroy Leader 50 | . 50 . Successful Hack 18 | . 18 . Select Force Hacks 60 | . 60 . Destroy Structure 9 | . 9 . Lose Combat Pursuer 75 | . 75 . Influence Decreases 487 | 30 389 68 Entered New Map 33 | . . 33 Time Decay 454 | 30 389 35 Squads Dispatched 3 | . 3 . Investigation 2 | . 2 . Extermination . | . . . Reinforcement 1 | . 1 . Assault . | . . . Garrison . | . . . Intercept . | . . . Searches Triggered . | . . . Construction Impeded . | . . . Haulers Reinforced . | . . . Active Scanning Responses . | . . . Cargo Convoy Interrupts . | . . . Stealth | -11 -10 -10 --------- Run | Yrd Mat Sub Distress Signals 3 | . 3 . Communications Jammed . | . . . Distress Signals . | . . . Times Spotted 31 | . 27 4 Peak Tracking Total 7 | . 7 2 Tactical Retreats 4 | . 4 . Traps | -11 -10 -10 ------- Run | Yrd Mat Sub Traps Triggered 3 | . 1 2 Indirectly . | . . . Trap Hack Attempts . | . . . Triggered . | . . . Disarmed . | . . . Reprogrammed . | . . . Reused . | . . . Traps Extracted . | . . . Installed . | . . . Triggered . | . . . Machines | -11 -10 -10 ---------- Run | Yrd Mat Sub Machines Disabled 1 | . . 1 Max in Single Turn 1 | . . 1 Machines Repaired . | . . . Machines Dismantled . | . . . Machines Sabotaged . | . . . Overloaded Fab Kills . | . . . Hacking | -11 -10 -10 --------- Run | Yrd Mat Sub Machines Accessed 10 | . 9 1 Terminals 7 | . 7 . Fabricators . | . . . Repair Stations . | . . . Recycling Units 2 | . 2 . Scanalyzers . | . . . Garrison Access . | . . . Total Hacks 22 | . 21 1 Successful 14 | . 13 1 Failed 7 | . 7 . Catastrophic . | . . . Database Lockouts 1 | . 1 . Manual 18 | . 18 . Terminals 17 | . 17 . Fabricators . | . . . Repair Stations . | . . . Recycling Units 4 | . 4 . Scanalyzers . | . . . Garrison Access . | . . . Terminal Hacks 3 | . 2 1 Robot Analysis 1 | . 1 . Zone Layout 1 | . 1 . Proto ID Catalog 1 | . . 1 Fabricator Hacks . | . . . Repair Station Hacks . | . . . Recycling Unit Hacks 2 | . 2 . Retrieve Components 2 | . 2 . Scanalyzer . | . . . Garrison Access Hacks . | . . . Unauthorized Hacks 9 | . 9 . Terminals 7 | . 7 . Operators 1 | . 1 . Skim 6 | . 6 . Fabricators . | . . . Repair Stations . | . . . Recycling Units 2 | . 2 . Tunnel 2 | . 2 . Scanalyzers . | . . . Garrison Access . | . . . Data Cores Recovered . | . . . Used . | . . . Hacking Detections 7 | . 7 . Full Trace Events . | . . . Feedback Events . | . . . Feedback Blocked . | . . . Robot Schematics Acquired . | . . . Robots Built . | . . . Authchips . | . . . Time . | . . . Total Robot Build Rating . | . . . Part Schematics Acquired . | . . . Parts Built . | . . . Authchips . | . . . Time . | . . . Total Part Build Rating . | . . . Parts Repaired . | . . . Time . | . . . Parts Recycled . | . . . Recycled Matter . | . . . Retrieved Matter . | . . . Retrieved Components 15 | . 15 . Parts Scanalyzed . | . . . Part Schematics Acquired . | . . . Parts Damaged . | . . . Bothacking | -11 -10 -10 ------------ Run | Yrd Mat Sub Used RIF Installer . | . . . Robots Hacked . | . . . Non-combat . | . . . Combat . | . . . Robot Hacks Applied . | . . . Relay Couplers Released . | . . . Fabnet Peak Effective % . | . . . Robots Rewired . | . . . Allies Hacked . | . . . Hacks Repelled . | . . . Allies | -11 -10 -10 -------- Run | Yrd Mat Sub Total Allies . | . . . Largest Group . | . . . Highest-Rated Group . | . . . Highest-Rated Ally . | . . . Total Orders . | . . . Ally Attacks . | . . . Total Damage . | . . . Kills . | . . . Allies Corrupted . | . . . Allies Melted . | . . . Intel | -11 -10 -10 ------- Run | Yrd Mat Sub Active Infowar (turns) 3977 | 28 1704 2245 Sensors 14 | . . 14 Seismic 3963 | 28 1704 2231 Robot Analysis Total 1 | . 1 . Derelict Logs Recovered 1 | . . 1 Drone Launches . | . . . Drone Recoveries . | . . . Exploration | -11 -10 -10 ------------- Run | Yrd Mat Sub Turns Passed 4342 | 167 1884 2291 Spaces Moved 1396 | 75 665 656 Core . | . . . Treads 1029 | . 373 656 Legs 354 | 75 279 . Wheels 13 | . 13 . Hover . | . . . Flight . | . . . Fastest Speed 120 | 120 120 320 Average Speed 269 | 120 233 321 Slowest Speed 340 | 120 320 340 Overloaded Moves . | . . . Propulsion Burnouts . | . . . Robots Hopped . | . . . Potential Cave-ins . | . . . Cave-ins Triggered . | . . . Exploration Rate (%) 47 | 5 100 37 Regions Visited 2 Branch Regions 1 Pre-discovered Areas 5 | . 4 1 Known Exits Taken 1 | . 1 . Unknown Exits Taken 1 | 1 . . Scrap Searched 8 | . . 8 Spaces Dug 10 | . 9 1 Terrain Destroyed 11 | . 10 1 Melee 2 | . 1 1 Projectile 9 | . 9 . AOE . | . . . Terrain Rammed . | . . . Walls Destroyed . | . . . Machines Disabled . | . . . Actions | -11 -10 -10 --------- Run | Yrd Mat Sub Total 1767 | 122 867 778 Wait 168 | 28 98 42 Move 1394 | 74 664 656 Hop . | . . . Pick Up 29 | 2 19 8 Fast Attach 4 | 1 . 3 Attach 2 | . . 2 Detach 1 | . . 1 Swap 38 | 1 19 18 Drop 18 | . 6 12 Fire 100 | 16 58 26 Melee 11 | . 1 10 Ram . | . . . Kick 1 | . 1 . Crush 1 | . 1 . Escape Stasis . | . . . Rewire . | . . . Trap . | . . . Miscellaneous . | . . . Route ------- -11/Scrapyard -10/Materials (discovered 5 exits: [*Mat x3] / *Min / *Sub) -10/Subcaves (discovered 1 exit: [*Mat]) History --------- Turn | Location | Event 1 | -11/Scrapyard | Discovered new exit (range 3) 168 | -11/Scrapyard | Entered Materials 307 | -10/Materials | Build established: Mutant 390 | -10/Materials | Discovered new exit (range 7) 580 | -10/Materials | Discovered new exit (range 9) 881 | -10/Materials | Discovered new exit (range 13) 1360 | -10/Materials | Learned Storage emergency access door positions 1434 | -10/Materials | Identified exit to Subcaves 1499 | -10/Materials | Identified exit to Mines 1499 | -10/Materials | Learned location of 1 exit from Materials 1602 | -10/Materials | Learned location of Mines (-8) 1707 | -10/Materials | Central database locked down 1741 | -10/Materials | Learned Materials emergency access door positions 1808 | -10/Materials | Learned location of 2 exits from Materials 2052 | -10/Materials | Entered Subcaves 2114 | -10/Subcaves | Shifting Twisted Machinery released Battle Rifle 2147 | -10/Subcaves | Discovered new exit (range 10) 2158 | -10/Subcaves | Shifting Twisted Machinery released Scrap Shield 2523 | -10/Subcaves | Core integrity fell below 50% 2862 | -10/Subcaves | A swath of the cavern ceiling suddenly collapsed 3352 | -10/Subcaves | Learned location of Zion (-6) 3664 | -10/Subcaves | Visited 4L-MR0's lab 3714 | -10/Subcaves | Found Flightbrick 4053 | -10/Subcaves | Disturbed a concealed Subdweller 4055 | -10/Subcaves | Core integrity fell below 20% 4343 | -10/Subcaves | Destroyed by 9M-2XM(R) with Subdweller Beam Cannon Last Messages --------------- 04137_ Found Sub. Beam Cannon. 04137_ Found Sub. Laser. 04137_ Found 46 Matter. 04140_ Searching scrap... 04140_ Found Battle Cannon. 04140_ Found Riot Gun. 04140_ Found 68 Matter. 04144_ Subatomizers dissect the Battle Cannon. 04162_ Dropped EM Pulse Gun. 04162_ Acquired Riot Gun. 04165_ Subatomizers dissect the Battle Cannon. 04196_ System corrupted: Matter fused (-5). 04259_ W FLDRXG%HFAIE:SJGYONC%6X 04274_ 9S-QSI(u) tweaks Twisted Machinery. 04294_ 9S-QSI(u) cries out in pain. 04294_ 9S-QSI(u) destroyed. 04296_ Acquired 15 matter. 04299_ System corrupted: Energy discharge (-21). 04326_ 9M-2XM(R): "SUBHATE!" 04330_ N5ZC6>%E8%ZJ7 ATSTRB2DL7GC Map ----- +----------------------------------------------------+ | ?????????????????????????????????????????????????? | | ??#############??????????????????????????????????? | | ??#"=""""""#==#??????????????????????????????????? | | ??#" = "X" =" #??????????????????????????????????? | | ##### !###??????????????????????????????????? | | #" + ####?????????????????????????????????? | | #" ########### #?????????????????????????????????? | | # "####???#### #?????????????????????????????????? | | #"* #####"" #?????????????????????????????????? | | #" # ##?????????????????????????????????? | | ##"^ ##""#??????????????????????????????????? | | ?##" "## "####??????????????????????????????????? | | #######" "###?##?????????###????????????????????? | | # ### " ## #????????## #????????????????????? | | #??####### ##???????????????????? | | #??# ## ##??????????????????? | | ##### #??????????????????? | | # ## #?# #??????????????????? | | ######### #??# #??????????????????? | | ?????##### #??# #??????????????????? | | ###### ### #### ##?????????????????? | | # ## ##????????????????? | | # ## ### #??????????? ????? | | # ### [ ### #?????????? " ???? | | # ## # ### ######?###?""" ??? | | # # ## @## ## ##""## "" ??? | | ## ## # R## " ""#??? | | # #### ## # # ## "#??? | | ###??######### ## ##? ##?? | | ????????????## ### #?# #? | | ???????????## ##?# ## ? | | ???????????# #??# ? | | ???????????## ##### =% ? | | ????????????## ! | #### ### ### ### ?? | | ????????????## ### ### #???????????? | | ????????????# ##?####?## #???????????? | | ????????????# ### ##???????# ##??????????? | | ????????????## #### #???????# ## ##??????? | | ???????#####?###### ##??????## #??????? | | ??????## #???### ####???????# # #??????? | | ??????# #??## ##????????## ### ##??????? | | ?????## # #??# #?######## ## ### #??????? | | ?##### ## #### ###]|%[= #??# #?????? | | ?# # ###%[%]## ###??? ????? | | ?# #?#& ]*"## ## ##?????? ???? | | ?# ####?#[##"]"# ### #???????? ??? | | ## # ### ##????# #%% "# ####?????????????? | | # ###?#######?????# #"]"%# #???????????????? | | # ##?????????????# ##""## ##???????????????? | | #?????????????# #### ##????????????????? | +----------------------------------------------------+ Best States ------------- Heat Dissipation 35 Energy Generation 15 Energy Capacity 250 Matter Stores 300 Matter Capacity 300 Sight Range 16 Robot Scan Range 14 Terrain Scan Density 10 Evasion (%) 55 Recoil Reduction 2 Item Schematics ----------------- None Robot Schematics ------------------ None Fabricated ------------ Nothing Repaired ---------- Nothing Alien Tech Used ----------------- None Achievements -------------- None Challenges ------------ None Game ------ Seed PointArmageddonRailcannon Manual? 0 Play Time 00:19:16 Cumulative 436.1 hours Start 2025.06.08 @ 22:48:22 End 2025.06.09 @ 23:27:04 Sessions 3 Manual Loads 0 Difficulty Rogue Special Mode None Game No. 220 Rogue 157 Adventurer 63 Explorer 0 Win Type - Total 9 Types 8/0/0/1/0/0/0/0/0/0 Lore% 87 Gallery% 79 Achievement% 66 Wizard Run 0 Options --------- Layout 0 ASCII 0 Keyboard 1 Movement Numpad Keybinds 0 Fullscreen 1 Font 18/Terminus Map View 76x50 Zoom Use 2% Tactical HUD 1 Map Filters NONE Filters NONE Steam 1 RUN: bb750726-8589-4545-9bd4-e825ea525a27